fUST/lending_fUST_20240521
["ID","MTS","AMOUNT","RATE_DAILY","PERIOD"]
[327580193,1716243046362,-771.85111591,0.00020913,2]
[327580195,1716243046372,-280.0,0.00021,2]
[327580197,1716243046381,-305.37736198,0.0002175,2]
[327580199,1716243046390,-166.666666,0.00021918,2]
[327580201,1716243046399,-3021.1019178,0.00021918,2]
[327580203,1716243046409,-159.70333977,0.00022,2]
[327580205,1716243046419,-166.666666,0.00022431,2]
[327580207,1716243046430,-603.2,0.00022937,3]
[327580209,1716243046439,-150.0,0.00022937,3]
[327580211,1716243046449,-166.666666,0.00022944,2]
[327580213,1716243046458,-154.90705577,0.00023,2]
[327580214,1716243046468,-166.666666,0.00023456,2]
[327580216,1716243046478,-468.00878609,0.000239,2]
[327580219,1716243046488,-166.666666,0.00023969,2]
[327580221,1716243046498,-187.88906841,0.00024,2]
[327580223,1716243046507,-2151.97780278,0.00024327,2]
[327580225,1716243046517,-164.08757,0.00024384,2]
[327580227,1716243046527,-351.511143,0.00024384,2]
[327580229,1716243046537,-166.666666,0.00024482,2]
[327580231,1716243046546,-380.0,0.00024658,2]
[327580233,1716243046555,-167.4232435,0.00025,2]
[327580235,1716243046567,-400.71262343,0.00025,2]
[327580237,1716243046576,-154.90705577,0.00025,14]
[327580239,1716243046586,-603.2,0.00025081,5]
[327580241,1716243046598,-150.0,0.00025081,5]
[327580243,1716243046608,-500.0,0.00026712,2]
[327580245,1716243046617,-500.0,0.00026712,2]
[327580247,1716243046627,-603.2,0.00027226,5]
[327580249,1716243046637,-150.0,0.00027226,5]
[327580251,1716243046647,-1136.59312053,0.0002739,2]
[327580253,1716243046656,-500.0,0.00027397,2]
[327580255,1716243046666,-500.0,0.00027397,2]
[327580257,1716243046676,-650.0,0.00027397,2]
[327580259,1716243046685,-500.0,0.00027397,2]
[327580261,1716243046695,-500.0,0.00027397,2]
[327580263,1716243046704,-500.0,0.00027397,2]
[327580265,1716243046713,-500.0,0.00027397,2]
[327580267,1716243046723,-500.0,0.00027397,2]
[327580269,1716243046733,-500.0,0.00027397,2]
[327580271,1716243046743,-500.0,0.00027397,2]
[327580273,1716243046752,-500.0,0.00027397,2]
[327580275,1716243046761,-500.0,0.00027397,2]
[327580277,1716243046770,-500.0,0.00027397,2]
[327580279,1716243046780,-500.0,0.00027397,2]
[327580281,1716243046789,-500.0,0.00027397,2]
[327580283,1716243046799,-500.0,0.00027397,2]
[327580285,1716243046808,-500.0,0.00027397,2]
[327580286,1716243046817,-500.0,0.00027397,2]
[327580288,1716243046826,-500.0,0.00027397,2]
[327580290,1716243046835,-500.0,0.00027397,2]
[327580292,1716243046845,-500.0,0.00027397,2]
[327580293,1716243046854,-500.0,0.00027397,2]
[327580294,1716243046863,-500.0,0.00027397,2]
[327580295,1716243046872,-500.0,0.00027397,2]
[327580296,1716243046881,-500.0,0.00027397,2]
[327580297,1716243046890,-524.39231541,0.00027397,2]
[327580298,1716243046899,-500.0,0.00027397,2]
[327580299,1716243046908,-2523.5,0.00027397,2]
[327580300,1716243046917,-2523.5,0.00027397,2]
[327580302,1716243046928,-2523.5,0.00027397,2]
[327580304,1716243046938,-2523.5,0.00027397,2]
[327580306,1716243046947,-2523.5,0.00027397,2]
[327580308,1716243046956,-2523.5,0.00027397,2]
[327580310,1716243046965,-2523.5,0.00027397,2]
[327580312,1716243046974,-2523.5,0.00027397,2]
[327580314,1716243046983,-2523.5,0.00027397,2]
[327580316,1716243046993,-187.7642665,0.00027671,2]
[327580318,1716243047002,-221.55802421,0.00028,2]
[327580320,1716243047012,-504.697217,0.00028,2]
[327580323,1716243047021,-2960.84192269,0.00028,2]
[327580384,1716243047515,-13800.46027318,0.00014999,2]
[327580389,1716243047549,-672.2517208,0.00014999,2]
[327580675,1716243319285,1000.0,0.00029,30]
[327580677,1716243363119,1000.0,0.00029,30]
[327580855,1716244239285,-230.85037262,9.968e-05,2]
[327580857,1716244239295,-1496.69412767,9.968e-05,2]
[327580858,1716244239305,-29520.2381696,0.00011735,2]
[327580861,1716244239316,-29891.75604941,0.00011735,2]
[327580863,1716244239327,-21891.04232544,0.00011736,2]
[327580865,1716244239339,-1912.64707196,0.00011736,2]
[327580867,1716244239352,-1096.3106026,0.00011736,2]
[327580869,1716244239362,-302.221874,0.00013699,2]
[327580871,1716244239372,-1529.29012229,0.00013699,2]
[327580873,1716244239384,-1004.2042,0.00013699,2]
[327580875,1716244239396,-466.50567771,0.00013699,2]
[327580877,1716244239407,-2902.06927534,0.00014898,2]
[327580885,1716244241111,-236.56094657,9.967e-05,2]
[327580886,1716244241122,-5298.34394215,0.00014898,2]
[327580887,1716244241131,-513.4844886,0.00014996,2]
[327580888,1716244241140,-261.10136921,0.00014996,2]
[327580889,1716244241150,-872.66687531,0.00014996,2]
[327580890,1716244241159,-410.45768134,0.00014997,2]
[327580892,1716244241168,-7894.33531896,0.00014997,2]
[327580894,1716244241178,-9191.43351184,0.00014998,2]
[327580896,1716244241190,-6967.9272941,0.00014998,2]
[327580897,1716244241199,-1581.42130168,0.00014998,2]
[327580899,1716244241209,-238.75882037,0.00014998,2]
[327580901,1716244241218,-187.33653148,0.00014998,2]
[327580903,1716244241227,-307.84229627,0.00014998,2]
[327580905,1716244241236,-1684.33877323,0.00015,2]
[327580907,1716244241246,-24001.87498288,0.00015,2]
[327581028,1716244244855,-11616.29100327,0.00015,2]
[327581030,1716244244865,-942.77170322,0.00015,2]
[327581032,1716244244874,-2108.05589247,0.00015,2]
[327581034,1716244244883,-1007.99924686,0.00018217,2]
[327581036,1716244244892,-9300.1338868,0.00019176,2]
[327581038,1716244244902,-180.44686664,0.00019176,2]
[327581040,1716244244912,-251.39377461,0.00019176,2]
[327581041,1716244244922,-283.45640941,0.00019176,2]
[327581042,1716244244931,-6718.32965344,0.00019176,2]
[327581043,1716244244941,-564.60164656,0.00019177,2]
[327581044,1716244244950,-155.05052909,0.00019177,2]
[327581045,1716244244960,-500.0,0.00019178,2]
[327581046,1716244244970,-500.0,0.00019178,2]
[327581047,1716244244979,-500.0,0.00019178,2]
[327581048,1716244244988,-500.0,0.00019178,2]
[327581049,1716244244999,-500.0,0.00019178,2]
[327581050,1716244245008,-500.0,0.00019178,2]
[327581051,1716244245018,-500.0,0.00019178,2]
[327581052,1716244245029,-500.0,0.00019178,2]
[327581053,1716244245039,-500.0,0.00019178,2]
[327581054,1716244245049,-500.0,0.00019178,2]
[327581055,1716244245059,-500.0,0.00019178,2]
[327581056,1716244245069,-500.0,0.00019178,2]
[327581057,1716244245079,-500.0,0.00019178,2]
[327581058,1716244245090,-155.34334407,0.00019178,2]
[327581059,1716244245100,-500.0,0.00019178,2]
[327581060,1716244245111,-500.0,0.00019178,2]
[327581061,1716244245122,-500.0,0.00019178,2]
[327581062,1716244245132,-500.0,0.00019178,2]
[327581063,1716244245142,-500.0,0.00019178,2]
[327581064,1716244245152,-500.0,0.00019178,2]
[327581065,1716244245162,-550.0,0.00019178,2]
[327581066,1716244245171,-161.6769362,0.00019178,2]
[327581067,1716244245182,-161.676935,0.00019178,2]
[327581068,1716244245191,-164.735554,0.00019178,2]
[327581069,1716244245201,-309.72115534,0.0002,2]
[327581070,1716244245212,-1565.51900701,0.0002,2]
[327581071,1716244245221,-400.0,0.0002,2]
[327581072,1716244245231,-7413.7136393,0.0002,2]
[327581073,1716244245242,-240.40188331,0.0002,2]
[327581074,1716244245251,-4692.31037495,0.0002,2]
[327581075,1716244245261,-200.0,0.0002,2]
[327581076,1716244245271,-302.221874,0.00020548,2]
[327581077,1716244245281,-351.8,0.0002074,3]
[327581078,1716244245291,-351.8,0.0002074,2]
[327581079,1716244245300,-150.0,0.0002074,3]
[327581080,1716244245310,-150.0,0.0002074,2]
[327581081,1716244245321,-280.0,0.00021,2]
[327581082,1716244245330,-306.09705841,0.0002175,2]
[327581083,1716244245342,-166.666666,0.00021918,2]
[327581084,1716244245351,-159.70333977,0.00022,2]
[327581085,1716244245360,-59053.08377692,0.00022,2]
[327581086,1716244245371,-166.666666,0.00022431,2]
[327581087,1716244245381,-351.8,0.00022889,3]
[327581088,1716244245390,-150.0,0.00022889,3]
[327581089,1716244245400,-166.666666,0.00022944,2]
[327581090,1716244245410,-154.8915759,0.00023,2]
[327581091,1716244245420,-166.666666,0.00023456,2]
[327581092,1716244245429,-166.666666,0.00023969,2]
[327581093,1716244245441,-187.16152448,0.00024,2]
[327581094,1716244245453,-481.614398,0.00024384,2]
[327581095,1716244245463,-166.666666,0.00024482,2]
[327581096,1716244245472,-400.71262343,0.00025,2]
[327581097,1716244245482,-167.4232435,0.00025,2]
[327581098,1716244245491,-154.8915759,0.00025,14]
[327581099,1716244245501,-154.81422293,0.00025,2]
[327581100,1716244245511,-351.8,0.00025039,5]
[327581101,1716244245522,-150.0,0.00025039,5]
[327581102,1716244245532,-156.0029287,0.000269,2]
[327581103,1716244245543,-351.8,0.00027188,5]
[327581104,1716244245553,-150.0,0.00027188,5]
[327581105,1716244245563,-1136.59312053,0.0002739,2]
[327581106,1716244245574,-1577.19,0.00027397,2]
[327581107,1716244245583,-1577.19,0.00027397,2]
[327581108,1716244245592,-1577.19,0.00027397,2]
[327581109,1716244245603,-1577.19,0.00027397,2]
[327581110,1716244245612,-500.0,0.00027397,2]
[327581111,1716244245622,-500.14,0.00027397,2]
[327581112,1716244245631,-417.22450303,0.0002774,2]
[327581113,1716244245642,-4223.25780806,0.00027806,2]
[327581114,1716244245652,-221.55802421,0.00028,2]
[327581115,1716244245664,-496.0,0.00028241,2]
[327581116,1716244245677,-150.0,0.00028241,2]
[327581117,1716244245688,-151.39594429,0.00028942,2]
[327581118,1716244245697,-1577.19,0.00028999,2]
[327581119,1716244245707,-21530.39417404,0.00029,3]
[327581120,1716244245718,-475.36724466,0.00029,2]
[327581121,1716244245729,-6720.4108993,0.00029,2]
[327581122,1716244245746,-383.84973881,0.00029,2]
[327581123,1716244245765,-3558.68783748,0.00029,2]
[327581124,1716244245779,-189.68834413,0.00029,2]
[327581125,1716244245790,-154.87609912,0.00029,2]
[327581126,1716244245801,-154.87609912,0.00029,7]
[327581127,1716244245810,-154.87609912,0.00029,2]
[327581128,1716244245819,-154.87609912,0.00029,2]
[327581129,1716244245829,-760.11966554,0.00029,2]
[327581130,1716244245839,-3977.95327634,0.00029,2]
[327581131,1716244245848,-686.70361329,0.00029,10]
[327581132,1716244245858,-4736.64846743,0.00029,2]
[327581133,1716244245868,-351.8,0.00029337,7]
[327581134,1716244245877,-150.0,0.00029337,7]
[327581135,1716244245887,-154.8915759,0.0003,4]
[327581136,1716244245896,-464.09985769,0.0003,30]
[327581137,1716244245907,-886.41112912,0.0003,4]
[327581138,1716244245916,-154.87609912,0.0003,4]
[327581139,1716244245926,-255.0,0.0003,2]
[327581140,1716244245935,-481.614398,0.0003031,2]
[327581141,1716244245945,-150.0,0.00031,6]
[327581142,1716244245955,-386.46308488,0.00031,2]
[327581143,1716244245967,-386.46308488,0.00031,2]
[327581144,1716244245976,-386.46308488,0.00031,2]
[327581145,1716244245986,-386.46308488,0.00031,2]
[327581146,1716244245996,-386.46308488,0.00031,2]
[327581147,1716244246005,-386.46308488,0.00031,2]
[327581148,1716244246015,-386.46308488,0.00031,2]
[327581149,1716244246024,-386.46308488,0.00031,2]
[327581150,1716244246033,-386.46308488,0.00031,2]
[327581151,1716244246043,-386.46308488,0.00031,2]
[327581152,1716244246052,-386.46308488,0.00031,2]
[327581153,1716244246062,-386.46308488,0.00031,2]
[327581154,1716244246071,-386.46308488,0.00031,2]
[327581155,1716244246080,-386.46308488,0.00031,2]
[327581156,1716244246090,-386.46308488,0.00031,2]
[327581159,1716244246099,-386.46308488,0.00031,2]
[327581162,1716244246108,-386.46308488,0.00031,2]
[327581163,1716244246118,-386.46308488,0.00031,2]
[327581165,1716244246127,-386.46308488,0.00031,2]
[327581166,1716244246137,-386.46308,0.00031,2]
[327581167,1716244246146,-496.0,0.00031241,2]
[327581168,1716244246156,-150.0,0.00031241,2]
[327581169,1716244246166,-351.8,0.00031487,7]
[327581170,1716244246176,-156.0029287,0.000319,2]
[327581171,1716244246185,-448.53105221,0.00032,4]
[327581172,1716244246195,-1600.00756704,0.00032,15]
[327581173,1716244246209,-240.54857096,0.00032,15]
[327581174,1716244246219,-1000.0,0.000325,15]
[327581175,1716244246229,-396.3461,0.00032907,30]
[327581176,1716244246239,-526.66959378,0.00033,2]
[327581177,1716244246248,-460.0,0.00033,2]
[327581178,1716244246258,-255.0,0.00033,2]
[327581179,1716244246267,-255.0,0.00033,2]
[327581180,1716244246277,-1000.0,0.00033,15]
[327581181,1716244246286,-460.0,0.00033151,2]
[327581182,1716244246295,-460.0,0.00033425,2]
[327581183,1716244246306,-1000.0,0.000335,15]
[327581184,1716244246315,-351.8,0.00033636,7]
[327581185,1716244246325,-460.0,0.00033699,2]
[327581186,1716244246335,-460.0,0.00033973,2]
[327581187,1716244246344,-63.34551648,0.00034,4]
[327581188,1716244246661,-404.58925159,0.00034,4]
[327581189,1716244246670,-1000.0,0.00034,15]
[327581190,1716244246680,-496.0,0.00034241,2]
[327581192,1716244246689,-150.0,0.00034241,2]
[327581194,1716244246698,-1000.0,0.000345,15]
[327581196,1716244246707,-460.0,0.00034521,2]
[327581198,1716244246717,-567.5,0.00034547,120]
[327581200,1716244246726,-266.999999,0.00034547,2]
[327581201,1716244246735,-151.0,0.00034547,30]
[327581204,1716244246744,-228.43463358,0.00034547,30]
[327581205,1716244246755,-303.25849599,0.00034547,30]
[327581208,1716244246764,-3503.29202517,0.00034547,30]
[327581209,1716244246773,-62.70064824,0.000348,3]
[327581212,1716244246785,-937.29935176,0.000348,3]
[327581214,1716244246795,-4.12970389,0.00034899,2]
[327581234,1716244247240,-2697.56805845,0.00019177,2]
[327581236,1716244247249,-995.50029611,0.00034899,2]
[327581238,1716244247258,-999.63,0.00034899,2]
[327581240,1716244247267,-31.87479508,0.00034899,2]
[327581242,1716244247279,-967.75520492,0.00034899,2]
[327581244,1716244247289,-133.80489276,0.00034899,2]
[327581622,1716244867576,236.56094657,9.999e-05,2]
[327581623,1716244885219,230.85037262,9.999e-05,2]
[327581625,1716244972996,273.37336231,9.9e-05,2]
[327581626,1716244981933,273.37336231,9.9e-05,2]
[327581627,1716244989992,273.37336231,9.9e-05,2]
[327581628,1716244997952,212.46859388,9.9e-05,2]
[327581629,1716244997984,60.90476843,9.9e-05,2]
[327581630,1716245006083,273.37336231,9.9e-05,2]
[327581631,1716245013019,487.76962202,9.999e-05,2]
[327581632,1716245013860,166.01232171,9.9e-05,2]
[327581633,1716245035909,452.6212924,9.999e-05,2]
[327581634,1716245046735,59.31863313,9.999e-05,2]
[327581635,1716245046767,660.78859568,9.999e-05,2]
[327581636,1716245047092,839.21140432,9.999e-05,2]
[327582080,1716245439474,-158.54914524,9.974e-05,2]
[327582083,1716245439484,-194.48940853,9.975e-05,2]
[327582085,1716245439494,-2892.0688999,9.975e-05,2]
[327582464,1716245444644,-56266.01289994,9.975e-05,2]
[327589289,1716245568837,1037.93,0.00029,30]
[327589295,1716246179455,1500.0,8.924e-05,2]
[327589296,1716246179490,23400.0,8.924e-05,2]
[327589299,1716246330336,1039.8666924,9.012e-05,2]
[327589300,1716246336755,-194.48940853,9.908e-05,2]
[327589301,1716246336776,-1350.72680674,9.909e-05,2]
[327589302,1716246336796,-487.76962202,9.91e-05,2]
[327589303,1716246336815,-230.85037262,9.911e-05,2]
[327589304,1716246336835,-9561.24585473,9.911e-05,2]
[327589305,1716246336854,-158.54914524,9.912e-05,2]
[327589306,1716246336873,-2114.91734672,9.912e-05,2]
[327589307,1716246336893,-2652.64974947,9.953e-05,2]
[327589308,1716246336913,-43248.80169393,9.983e-05,2]
[327589384,1716246633528,-154.92253873,9.895e-05,2]
[327589386,1716246633537,-391.82418589,9.896e-05,2]
[327589388,1716246633549,-1494.00930761,9.896e-05,2]
[327589391,1716246633559,-487.76962202,9.897e-05,2]
[327589392,1716246633569,-154.92253873,9.898e-05,2]
[327589394,1716246633578,-2114.91734672,9.899e-05,2]
[327589396,1716246633588,-55758.92318089,9.899e-05,2]
[327589417,1716246639880,-3653.07103812,9.899e-05,2]
[327589419,1716246639890,-5633.83589388,9.9e-05,2]
[327589422,1716246639902,-3927.40996085,9.9e-05,2]
[327589424,1716246639911,-328.36363781,9.903e-05,2]
[327589426,1716246639921,-154.92519884,9.903e-05,2]
[327589428,1716246639931,-457.84557053,9.904e-05,2]
[327589430,1716246639943,-92.89256781,9.904e-05,2]
[327589431,1716246639952,-154.95045345,9.978e-05,2]
[327589433,1716246639961,-206.55656569,9.978e-05,2]
[327589435,1716246639970,-200.80869736,9.978e-05,2]
[327589437,1716246639980,-142.25171569,9.978e-05,2]
[327589843,1716246645135,-12.98238263,9.978e-05,2]
[327589845,1716246645144,-196.92146008,9.979e-05,2]
[327589847,1716246645153,-158.28913257,9.981e-05,2]
[327589849,1716246645163,-195.77079914,9.981e-05,2]
[327589851,1716246645172,-310.84452619,9.981e-05,2]
[327589853,1716246645182,-180.79749775,9.981e-05,2]
[327589855,1716246645191,-1311.64252394,9.982e-05,2]
[327589857,1716246645200,-3395.72519544,9.984e-05,2]
[327592656,1716246674083,-8954.73477624,9.982e-05,2]
[327592660,1716246674104,-487.76962202,9.982e-05,2]
[327592663,1716246674126,-1740.09589443,9.983e-05,2]
[327592666,1716246674147,-1901.89335864,9.983e-05,2]
[327592669,1716246674168,-154.97163949,9.983e-05,2]
[327592672,1716246674189,-220.99034615,9.983e-05,2]
[327592675,1716246674210,-8929.12802452,9.984e-05,2]
[327592679,1716246674231,-309.49005189,9.993e-05,2]
[327595200,1716246757565,178.7780661,9.993e-05,2]
[327595203,1716247492495,326.8,0.00029,30]
[327595204,1716247524271,560.1333076,8.399e-05,2]
[327595206,1716247625116,250.0,7.346e-05,2]
[327595210,1716247645460,234.35329789,7.346e-05,2]
[327595211,1716247647149,1015.64670211,7.346e-05,2]
[327595212,1716247647183,2500.0,7.346e-05,2]
[327595290,1716247834494,-1581.73856904,7.252e-05,2]
[327595292,1716247834504,-186.93199799,7.253e-05,2]
[327595294,1716247834514,-1051.35609391,7.253e-05,2]
[327595296,1716247834526,-834.47739959,7.253e-05,2]
[327595298,1716247834537,-316.26688974,7.253e-05,2]
[327595300,1716247834547,-522.72294863,7.254e-05,2]
[327595302,1716247834556,-880.93276204,7.254e-05,2]
[327595304,1716247834569,-7824.01733982,7.254e-05,2]
[327595306,1716247834581,-856.29575287,7.254e-05,2]
[327595308,1716247834591,-238.80965777,7.255e-05,2]
[327595310,1716247834600,-2466.41391558,7.255e-05,2]
[327595311,1716247834610,-487.76962202,7.255e-05,2]
[327595313,1716247834620,-2114.91734672,7.255e-05,2]
[327595315,1716247834629,-395.37013077,7.256e-05,2]
[327595317,1716247834639,-154.95351395,7.256e-05,2]
[327595319,1716247834649,-331.02680639,7.256e-05,2]
[327595321,1716247834659,-285.09281937,7.257e-05,2]
[327595323,1716247834673,-302.34644202,7.257e-05,2]
[327595325,1716247834682,-410.54570505,7.257e-05,2]
[327595327,1716247834695,-375.95154872,7.258e-05,2]
[327595775,1716247839570,-371.12891802,7.251e-05,2]
[327595777,1716247839580,-523.55614149,7.252e-05,2]
[327595779,1716247839590,-42453.93499616,7.253e-05,2]
[327595781,1716247839603,-3941.84568453,7.253e-05,2]
[327595783,1716247839615,-2899.43193312,7.253e-05,2]
[327595785,1716247839627,-990.89759992,7.253e-05,2]
[327595787,1716247839638,-3404.38958305,7.253e-05,2]
[327596255,1716247844734,-2163.43126643,7.253e-05,2]
[327596258,1716247844747,-3558.0631558,7.253e-05,2]
[327596261,1716247844756,-1120.74257895,7.258e-05,2]
[327596264,1716247844767,-331.02680639,7.27e-05,2]
[327596266,1716247844777,-5043.54541977,7.346e-05,2]
[327596268,1716247844788,-7591.09936001,7.346e-05,2]
[327596269,1716247844798,-281.61001373,7.346e-05,2]
[327596271,1716247844808,-154.93802479,7.346e-05,2]
[327596273,1716247844817,-364.99536497,7.346e-05,2]
[327596275,1716247844826,-234.30771363,7.346e-05,2]
[327596277,1716247844836,-4550.3981417,7.508e-05,2]
[327596278,1716247844845,-2844.6437608,8.349e-05,2]
[327596279,1716247844854,-461.4511379,8.399e-05,2]
[327596280,1716247844864,-781.90765512,9.397e-05,2]
[327596281,1716247844874,-154.9635035,9.397e-05,2]
[327596282,1716247844883,-7891.4211148,9.397e-05,2]
[327596283,1716247844892,-521.08141871,9.397e-05,2]
[327596284,1716247844902,-20932.11581648,9.4e-05,2]
[327596285,1716247844911,-409.51691661,9.404e-05,2]
[327596286,1716247844921,-292.42639699,9.404e-05,2]
[327596287,1716247844929,-704.0616487,9.404e-05,2]
[327596289,1716247844939,-818.4821224,9.404e-05,2]
[327596291,1716247844948,-309.49005189,9.405e-05,2]
[327596293,1716247844957,-154.97163949,9.405e-05,2]
[327596295,1716247844966,-220.99034615,9.405e-05,2]
[327596297,1716247844975,-1477.8565017,9.407e-05,2]
[327596309,1716247846220,-7302.86528306,7.252e-05,2]
[327596315,1716247846232,-509.01452635,7.252e-05,2]
[327596318,1716247846244,-882.37688319,7.252e-05,2]
[327596323,1716247846255,-260.47808364,7.252e-05,2]
[327596327,1716247846265,-202.61968683,7.252e-05,2]
[327596330,1716247846274,-4893.44146676,9.407e-05,2]
[327596334,1716247846286,-15212.12000001,9.407e-05,2]
[327596405,1716247847011,-284.88862026,7.345e-05,2]
[327596407,1716247847020,-544.08427452,9.313e-05,2]
[327596409,1716247847030,-3316.58203153,9.407e-05,2]
[327596411,1716247847039,-154.92253873,9.99e-05,2]
[327596413,1716247847049,-155.28665767,9.993e-05,2]
[327596415,1716247847058,-309.6903097,9.993e-05,2]
[327596417,1716247847067,-9400.5542733,0.0001,2]
[327596419,1716247847077,-781.9076551,0.00010698,2]
[327596421,1716247847087,-4223.25780806,0.00010789,2]
[327596423,1716247847096,-417.22450303,0.0001083,2]
[327596425,1716247847105,-1338.74026793,0.00010918,2]
[327596427,1716247847114,-528.49969732,0.00010918,2]
[327596429,1716247847124,-1716.62098532,0.00010918,2]
[327596431,1716247847133,-2597.71676849,0.00010919,2]
[327596433,1716247847142,-185.42,0.00010959,2]
[327596435,1716247847151,-2480.91,0.00010959,2]
[327596437,1716247847163,-2067.43,0.00010959,2]
[327596439,1716247847175,-1722.86,0.00010959,2]
[327596442,1716247847185,-1435.71,0.00010959,2]
[327596444,1716247847194,-1196.43,0.00010959,2]
[327596446,1716247847204,-997.02,0.00010959,2]
[327596447,1716247847213,-830.85,0.00010959,2]
[327596450,1716247847223,-692.38,0.00010959,2]
[327596452,1716247847232,-781.9076551,0.00012099,2]
[327596453,1716247847242,-771.85111591,0.00012395,2]
[327596456,1716247847251,-1450.46017766,0.00012395,2]
[327596457,1716247847261,-218.7763927,0.00012396,2]
[327596460,1716247847270,-781.9076551,0.00013499,2]
[327596462,1716247847279,-615.935296,0.00013699,2]
[327596464,1716247847289,-782.4433163,0.00013699,2]
[327596466,1716247847298,-151.0,0.00013699,2]
[327596468,1716247847308,-252.731558,0.00013699,2]
[327596470,1716247847317,-252.731558,0.00013699,2]
[327596471,1716247847327,-166.185138,0.00013699,2]
[327596474,1716247847337,-166.185138,0.00013699,2]
[327596475,1716247847346,-151.0,0.00013699,2]
[327596477,1716247847355,-151.0,0.00013699,2]
[327596480,1716247847365,-151.0,0.00013699,2]
[327596481,1716247847375,-283.50341374,0.000137,2]
[327596483,1716247847384,-174.21563739,0.000137,2]
[327596485,1716247847394,-167.29518075,0.000149,2]
[327596487,1716247847403,-167.29518075,0.000149,2]
[327596489,1716247847412,-781.9076551,0.000149,2]
[327596491,1716247847423,-387.68272766,0.00014996,2]
[327596493,1716247847432,-513.71287187,0.00014997,2]
[327596495,1716247847444,-4401.0419339,0.00014997,2]
[327596497,1716247847454,-1104.46928518,0.00014997,2]
[327596499,1716247847463,-151.0,0.00014997,2]
[327596501,1716247847474,-1578.034194,0.00014997,2]
[327596503,1716247847483,-1578.034194,0.00014997,2]
[327596504,1716247847493,-151.0,0.00014997,2]
[327596507,1716247847503,-151.0,0.00014997,2]
[327596509,1716247847514,-151.0,0.00014997,2]
[327596511,1716247847524,-151.0,0.00014997,2]
[327596513,1716247847533,-151.0,0.00014997,2]
[327596515,1716247847542,-151.0,0.00014997,2]
[327596517,1716247847551,-13569.53178575,0.00015,3]
[327596519,1716247847561,-942.77170322,0.00015,2]
[327596521,1716247847571,-1684.33877323,0.00015,2]
[327596523,1716247847581,-35618.16598615,0.00015,2]
[327596525,1716247847590,-162.05592317,0.00015,2]
[327596526,1716247847600,-154.92253873,0.00015,2]
[327596528,1716247847609,-68077.51543528,0.00015,2]
[327596531,1716247847619,-2108.05589247,0.00015,2]
[327596532,1716247847629,-227.89342,0.00015,2]
[327596534,1716247847639,-227.89342,0.00015,2]
[327596537,1716247847648,-227.89342,0.00015,2]
[327596539,1716247847658,-227.89342,0.00015,2]
[327596541,1716247847668,-151.0,0.00015,2]
[327596543,1716247847687,-151.0,0.00015,2]
[327596545,1716247847705,-288.081074,0.00015,2]
[327596547,1716247847715,-288.081074,0.00015,2]
[327596549,1716247847724,-158.540201,0.00015,2]
[327596551,1716247847733,-158.540201,0.00015,2]
[327596553,1716247847742,-288.081074,0.00015,2]
[327596555,1716247847752,-288.081074,0.00015,2]
[327596557,1716247847762,-158.540201,0.00015,2]
[327596559,1716247847771,-158.540201,0.00015,2]
[327596572,1716247847780,-1581.600665,0.00015,2]
[327596575,1716247847903,-1581.600665,0.00015,2]
[327596577,1716247847912,-1581.600665,0.00015,2]
[327596579,1716247847922,-1581.600665,0.00015,2]
[327596580,1716247847932,-1581.600665,0.00015,2]
[327596582,1716247847941,-1581.600665,0.00015,2]
[327596584,1716247847949,-1598.660785,0.00015,2]
[327596586,1716247847958,-1598.660785,0.00015,2]
[327596588,1716247847968,-1598.660785,0.00015,2]
[327596590,1716247847977,-1598.660785,0.00015,2]
[327596592,1716247847986,-1598.660785,0.00015,2]
[327596594,1716247847995,-1598.660785,0.00015,2]
[327596596,1716247848005,-151.0,0.00015,2]
[327596598,1716247848014,-151.0,0.00015,2]
[327596600,1716247848024,-151.0,0.00015,2]
[327596602,1716247848034,-151.0,0.00015,2]
[327596604,1716247848043,-151.0,0.00015,2]
[327596606,1716247848053,-151.0,0.00015,2]
[327596608,1716247848062,-151.0,0.00015,2]